fUST/lending_fUST_20250929
["ID","MTS","AMOUNT","RATE_DAILY","PERIOD"]
[388360912,1759122644997,-1293.35,0.00027397,7]
[388360913,1759122645007,-480.0,0.00027397,7]
[388360914,1759122645017,-584.87,0.00027397,7]
[388360915,1759122645026,-982.27,0.00027397,7]
[388360916,1759122645036,-673.84,0.00027397,7]
[388360917,1759122645045,-742.74,0.00027397,7]
[388360918,1759122645055,-480.0,0.00027397,7]
[388360919,1759122645065,-480.0,0.00027397,7]
[388360920,1759122645074,-1386.49,0.00027397,7]
[388360921,1759122645083,-480.0,0.00027397,7]
[388360922,1759122645092,-480.0,0.00027397,7]
[388360923,1759122645102,-480.0,0.00027397,7]
[388360924,1759122645111,-480.0,0.00027397,7]
[388360925,1759122645121,-480.0,0.00027397,7]
[388360926,1759122645131,-500.0,0.00027397,7]
[388360927,1759122645140,-480.0,0.00027397,7]
[388360928,1759122645149,-480.0,0.00027397,7]
[388360929,1759122645159,-480.0,0.00027397,7]
[388360930,1759122645169,-417.78574236,0.00027397,7]
[388360931,1759122645178,-1428.82,0.00027397,7]
[388360932,1759122645187,-480.0,0.00027397,7]
[388360933,1759122645196,-480.0,0.00027397,7]
[388360934,1759122645207,-480.0,0.00027397,7]
[388360935,1759122645216,-766.46,0.00027397,7]
[388360936,1759122645226,-468.03272221,0.00027397,7]
[388360937,1759122645236,-706.18,0.00027397,7]
[388360938,1759122645247,-480.0,0.00027397,7]
[388360939,1759122645256,-758.03,0.00027397,7]
[388360940,1759122645265,-480.0,0.00027397,7]
[388360941,1759122645274,-480.0,0.00027397,7]
[388360942,1759122645283,-357.24883556,0.00027397,7]
[388360943,1759122645293,-480.0,0.00027397,7]
[388360944,1759122645302,-480.0,0.00027397,7]
[388360945,1759122645311,-749.51,0.00027397,7]
[388360946,1759122645321,-480.0,0.00027397,7]
[388360947,1759122645330,-480.0,0.00027397,7]
[388360948,1759122645339,-480.0,0.00027397,7]
[388360949,1759122645348,-531.95,0.00027397,7]
[388360950,1759122645357,-480.0,0.00027397,7]
[388360951,1759122645367,-480.0,0.00027397,7]
[388360952,1759122645376,-786.08,0.00027397,7]
[388360953,1759122645385,-480.0,0.00027397,7]
[388360954,1759122645393,-480.0,0.00027397,7]
[388360955,1759122645403,-1000.0,0.00027397,7]
[388360956,1759122645412,-906.03,0.00027397,7]
[388360957,1759122645421,-481.57174167,0.00027397,7]
[388360958,1759122645430,-546.22,0.00027397,7]
[388360959,1759122645439,-2646.71,0.00027397,7]
[388360960,1759122645447,-480.0,0.00027397,7]
[388360961,1759122645456,-480.0,0.00027397,7]
[388360962,1759122645465,-480.0,0.00027397,7]
[388360963,1759122645481,-480.0,0.00027397,7]
[388360964,1759122645491,-631.82,0.00027397,7]
[388360965,1759122645500,-480.0,0.00027397,7]
[388360966,1759122645510,-482.9373159,0.00027397,7]
[388360967,1759122645522,-2848.04,0.00027397,7]
[388360968,1759122645533,-480.0,0.00027397,7]
[388360969,1759122645543,-480.0,0.00027397,7]
[388360970,1759122645555,-480.0,0.00027397,7]
[388360971,1759122645564,-481.81837346,0.00027397,7]
[388360972,1759122645573,-824.86,0.00027397,7]
[388360974,1759122645583,-747.76,0.00027397,7]
[388360976,1759122645592,-750.28,0.00027397,7]
[388360977,1759122645601,-1327.11,0.00027397,7]
[388360978,1759122645610,-480.63216321,0.00027397,7]
[388360979,1759122645620,-780.33,0.00027397,7]
[388360980,1759122645629,-480.0,0.00027397,7]
[388360981,1759122645639,-503.07,0.00027397,7]
[388360983,1759122645648,-756.76,0.00027397,7]
[388360984,1759122645657,-1904.94,0.00027397,7]
[388360986,1759122645667,-480.0,0.00027397,7]
[388360987,1759122645675,-534.94,0.00027397,7]
[388360988,1759122645685,-914.75,0.00027397,7]
[388360989,1759122645695,-480.0,0.00027397,7]
[388360990,1759122645705,-480.0,0.00027397,7]
[388360991,1759122645715,-480.0,0.00027397,7]
[388360992,1759122645724,-480.0,0.00027397,7]
[388360993,1759122645734,-795.05,0.00027397,7]
[388360994,1759122645744,-480.0,0.00027397,7]
[388360996,1759122645754,-449.99474768,0.00027397,7]
[388360998,1759122645763,-1000.2,0.00027397,7]
[388361000,1759122645774,-740.36,0.00027397,7]
[388361002,1759122645783,-749.59,0.00027397,7]
[388361004,1759122645793,-1020.05,0.00027397,7]
[388361006,1759122645802,-492.11827383,0.00027397,7]
[388361008,1759122645811,-809.06,0.00027397,7]
[388361010,1759122645820,-480.0,0.00027397,7]
[388361012,1759122645830,-480.0,0.00027397,7]
[388361014,1759122645839,-480.84687501,0.00027397,7]
[388361016,1759122645849,-1016.38,0.00027397,7]
[388361018,1759122645858,-480.0,0.00027397,7]
[388361020,1759122645870,-6591.85,0.00027397,3]
[388361022,1759122645879,-1202.63,0.00027397,7]
[388361024,1759122645888,-1384.09,0.00027397,7]
[388361026,1759122645897,-586.39560832,0.00027397,7]
[388361028,1759122645906,-480.0,0.00027397,7]
[388361030,1759122645916,-8719.87,0.00027397,7]
[388361032,1759122645925,-697.67,0.00027397,7]
[388361034,1759122645934,-480.0,0.00027397,7]
[388361036,1759122645943,-480.0,0.00027397,7]
[388361038,1759122645954,-624.26926609,0.00027397,7]
[388361040,1759122645963,-500.0,0.00027397,7]
[388361042,1759122645972,-507.09653027,0.00027397,7]
[388361044,1759122645982,-480.0,0.00027397,7]
[388361046,1759122645991,-480.0,0.00027397,7]
[388361048,1759122646001,-3168.5,0.00027397,7]
[388361050,1759122646010,-707.83,0.00027397,7]
[388361052,1759122646019,-480.0,0.00027397,7]
[388361054,1759122646028,-480.0,0.00027397,7]
[388361056,1759122646037,-3983.34,0.00027397,7]
[388361058,1759122646046,-845.63,0.00027397,7]
[388361060,1759122646056,-917.84,0.00027397,7]
[388361062,1759122646065,-480.0,0.00027397,7]
[388361064,1759122646074,-480.0,0.00027397,7]
[388361066,1759122646083,-2163.35,0.00027397,7]
[388361068,1759122646093,-480.0,0.00027397,7]
[388361071,1759122646102,-3898.32,0.00027397,7]
[388361074,1759122646111,-480.0,0.00027397,7]
[388361076,1759122646120,-901.71,0.00027397,7]
[388361077,1759122646129,-480.0,0.00027397,7]
[388361079,1759122646139,-480.0,0.00027397,7]
[388361081,1759122646148,-586.81,0.00027397,7]
[388361083,1759122646158,-975.75,0.00027397,7]
[388361085,1759122646168,-483.48290089,0.00027397,7]
[388361088,1759122646178,-480.0,0.00027397,7]
[388361089,1759122646187,-482.32382435,0.00027397,7]
[388361092,1759122646196,-480.0,0.00027397,7]
[388361093,1759122646206,-733.85,0.00027397,7]
[388361095,1759122646215,-732.86,0.00027397,7]
[388361097,1759122646224,-2242.83,0.00027397,7]
[388361099,1759122646234,-480.0,0.00027397,7]
[388361101,1759122646244,-480.0,0.00027397,7]
[388361103,1759122646253,-654.61,0.00027397,7]
[388361105,1759122646262,-480.0,0.00027397,7]
[388361107,1759122646272,-628.54,0.00027397,7]
[388361109,1759122646281,-1486.41,0.00027397,7]
[388361111,1759122646290,-739.41,0.00027397,7]
[388361113,1759122646299,-480.0,0.00027397,7]
[388361115,1759122646308,-993.84,0.00027397,7]
[388361117,1759122646317,-169.63260729,0.00027397,7]
[388361119,1759122646326,-1794.18,0.00027397,7]
[388361121,1759122646335,-548.58,0.00027397,7]
[388361123,1759122646344,-283.89118956,0.00027397,7]
[388361125,1759122646353,-500.0,0.00027397,7]
[388361127,1759122646363,-221.26905103,0.00027397,7]
[388361129,1759122646372,-2221.85,0.00027397,7]
[388361131,1759122646381,-480.0,0.00027397,7]
[388361133,1759122646390,-480.0,0.00027397,7]
[388361135,1759122646399,-2642.89,0.00027397,7]
[388361137,1759122646408,-979.02,0.00027397,7]
[388361139,1759122646417,-480.0,0.00027397,7]
[388361141,1759122646426,-480.0,0.00027397,7]
[388361143,1759122646435,-500.0,0.00027397,7]
[388361145,1759122646444,-480.0,0.00027397,7]
[388361147,1759122646453,-1703.22,0.00027397,7]
[388361149,1759122646463,-826.1,0.00027397,7]
[388361151,1759122646474,-480.0,0.00027397,7]
[388361153,1759122646485,-4417.6,0.00027397,7]
[388361155,1759122646494,-480.0,0.00027397,7]
[388361157,1759122646503,-480.0,0.00027397,7]
[388361159,1759122646512,-480.0,0.00027397,7]
[388361161,1759122646521,-1177.84,0.00027397,7]
[388361163,1759122646529,-2391.63,0.00027397,7]
[388361165,1759122646538,-1387.15,0.00027397,7]
[388361167,1759122646547,-480.0,0.00027397,7]
[388361169,1759122646556,-603.51,0.00027397,7]
[388361171,1759122646566,-584.13,0.00027397,7]
[388361173,1759122646574,-480.0,0.00027397,7]
[388361175,1759122646583,-1283.58,0.00027397,7]
[388361177,1759122646591,-1709.98,0.00027397,7]
[388361178,1759122646600,-3757.17,0.00027397,7]
[388361180,1759122646609,-8366.15,0.00027397,7]
[388361183,1759122646618,-480.0,0.00027397,7]
[388361185,1759122646628,-5253.66,0.00027397,7]
[388361186,1759122646637,-481.60276382,0.00027397,7]
[388361189,1759122646646,-480.0,0.00027397,7]
[388361190,1759122646655,-8120.38,0.00027397,7]
[388361192,1759122646665,-480.0,0.00027397,7]
[388361194,1759122646675,-913.79,0.00027397,7]
[388361196,1759122646684,-1778.13,0.00027397,7]
[388361198,1759122646693,-1620.22,0.00027397,7]
[388361200,1759122646702,-541.67,0.00027397,7]
[388361202,1759122646712,-480.0,0.00027397,7]
[388361204,1759122646722,-756.18,0.00027397,7]
[388361206,1759122646732,-587.74,0.00027397,7]
[388361208,1759122646741,-480.0,0.00027397,7]
[388361210,1759122646751,-533.13,0.00027397,7]
[388361213,1759122646761,-480.0,0.00027397,7]
[388361214,1759122646770,-3261.49,0.00027397,7]
[388361216,1759122646779,-716.06,0.00027397,7]
[388361218,1759122646788,-743.04,0.00027397,7]
[388361220,1759122646798,-480.0,0.00027397,7]
[388361222,1759122646807,-480.0,0.00027397,7]
[388361224,1759122646817,-480.0,0.00027397,7]
[388361226,1759122646827,-481.38661276,0.00027397,7]
[388361228,1759122646836,-480.0,0.00027397,7]
[388361230,1759122646846,-4717.5,0.00027397,7]
[388361232,1759122646855,-480.0,0.00027397,7]
[388361234,1759122646864,-964.98,0.00027397,7]
[388361236,1759122646873,-480.0,0.00027397,7]
[388361238,1759122646883,-480.0,0.00027397,7]
[388361240,1759122646892,-480.0,0.00027397,7]
[388361242,1759122646902,-615.26,0.00027397,7]
[388361244,1759122646911,-480.0,0.00027397,7]
[388361246,1759122646920,-314.46709949,0.00027397,7]
[388361279,1759122647232,-235.18290051,0.00027397,7]
[388361281,1759122647241,-480.0,0.00027397,7]
[388361283,1759122647251,-34.81709949,0.00027397,7]
[388361285,1759122647269,-821.33290051,0.00027397,7]
[388361287,1759122647278,-3328.25043982,0.00027397,7]
[388361396,1759122648318,-151.0,0.000269,7]
[388361398,1759122648333,-151.0,0.000269,7]
[388361400,1759122648342,-151.0,0.0002699,7]
[388361402,1759122648352,-151.0,0.0002699,7]
[388361404,1759122648361,-151.0,0.0002699,7]
[388361406,1759122648370,-217.620255,0.00027,7]
[388361408,1759122648379,-217.620261,0.00027,7]
[388361410,1759122648389,-185.92956018,0.00027397,7]
[388361412,1759122648398,-211.27885193,0.00027397,7]
[388362714,1759122733102,5000.0,0.00025205,2]
[388362721,1759122889085,150.0,0.00025,2]
[388362745,1759123283400,373104.3002,0.00033816,60]
[388362766,1759123699107,302.0,0.00028767,120]
[388362768,1759123723343,301.99999932,0.00025,5]
[388362781,1759123831796,-6611.59172966,0.000253,2]
[388362782,1759123831807,-960.48203222,0.000253,2]
[388362783,1759123831897,-364.56725275,0.000253,2]
[388362784,1759123831908,-376.00654605,0.000253,2]
[388362785,1759123831917,-192.05,0.000254,2]
[388362786,1759123831926,-436.0,0.00025505,2]
[388362787,1759123831935,-300.0,0.00025505,2]
[388362788,1759123831945,-530.0,0.00025505,2]
[388362790,1759123831955,-10000.01,0.00025506,2]
[388362792,1759123831964,-1483.3837163,0.00025861,2]
[388362794,1759123831973,-159.0,0.00025973,14]
[388362796,1759123831982,-500.0,0.00026786,2]
[388362797,1759123831991,-500.0,0.00026786,2]
[388362798,1759123832000,-500.0,0.00026786,2]
[388362800,1759123832010,-319.47748495,0.00026786,2]
[388362801,1759123832025,-500.0,0.00026786,2]
[388362802,1759123832035,-304.31268683,0.00026786,2]
[388362803,1759123832091,-195.68731317,0.00026786,2]
[388362804,1759123832101,-500.0,0.00026786,2]
[388362805,1759123832111,-344.88648563,0.00026786,2]
[388362862,1759123837647,-155.11351437,0.00026786,2]
[388362863,1759123837658,-196.80475538,0.00026786,2]
[388362864,1759123837707,-303.19524462,0.00026786,2]
[388362865,1759123837718,-300.0,0.00026786,2]
[388362867,1759123837727,-7846.5365451,0.00026788,2]
[388362868,1759123837736,-500.0,0.00026799,2]
[388362869,1759123837746,-500.0,0.00026799,2]
[388362870,1759123837756,-243.36394015,0.00026799,2]
[388362872,1759123837765,-9259.49029597,0.000268,2]
[388362873,1759123837777,-360740.50970403,0.000268,2]
[388362874,1759123837787,-2879.80944904,0.0002682,2]
[388362875,1759123837797,-168.0,0.0002692,2]
[388362876,1759123837806,-1000.0,0.00026999,2]
[388362877,1759123837815,-1000.0,0.00026999,2]
[388362878,1759123837824,-1000.0,0.00026999,2]
[388362879,1759123837833,-1000.0,0.00026999,2]
[388362880,1759123837843,-1000.0,0.00026999,2]
[388362881,1759123837851,-1000.0,0.00026999,2]
[388362882,1759123837860,-1000.0,0.00026999,2]
[388362883,1759123837869,-1000.0,0.00026999,2]
[388362884,1759123837878,-1000.0,0.00026999,2]
[388362885,1759123837887,-45072.34937053,0.00027,3]
[388362886,1759123837896,-233.87608454,0.00027,3]
[388362887,1759123837905,-160.0,0.00027,3]
[388362888,1759123837914,-153.0,0.00027157,2]
[388362889,1759123837923,-153.0,0.00027157,2]
[388362890,1759123837931,-2879.80944904,0.00027196,2]
[388362891,1759123837940,-1000.0,0.00027196,2]
[388362892,1759123837950,-1000.0,0.00027196,2]
[388362893,1759123837959,-1000.0,0.00027196,2]
[388362894,1759123837968,-1000.0,0.00027196,2]
[388362895,1759123837978,-1000.0,0.00027196,2]
[388362896,1759123837987,-1000.0,0.00027196,2]
[388362897,1759123837997,-1000.0,0.00027196,2]
[388362898,1759123838006,-1000.0,0.00027196,2]
[388362899,1759123838018,-1000.0,0.00027196,2]
[388362900,1759123838028,-1000.0,0.00027196,2]
[388362901,1759123838037,-1000.0,0.00027196,2]
[388362902,1759123838046,-1000.0,0.00027196,2]
[388362903,1759123838055,-1000.0,0.00027196,2]
[388362904,1759123838066,-762.57765493,0.00027196,2]
[388362905,1759123838075,-202.08433182,0.0002727,2]
[388362906,1759123838085,-197.863,0.00027296,16]
[388362907,1759123838098,-332.358677,0.00027296,2]
[388362908,1759123838107,-274.5858422,0.00027296,2]
[388362909,1759123838116,-598.2456186,0.00027296,2]
[388362910,1759123838125,-1063.5477664,0.00027296,2]
[388362911,1759123838134,-494.25451596,0.00027351,2]
[388362912,1759123838143,-1959.176628,0.0002738,5]
[388362913,1759123838153,-645.0,0.00027387,7]
[388362914,1759123838163,-151.0,0.00027387,7]
[388362915,1759123838172,-500.0,0.00027387,2]
[388362916,1759123838182,-151.0,0.00027387,7]
[388362917,1759123838191,-151.0,0.00027387,7]
[388362918,1759123838200,-151.0,0.00027387,7]
[388362919,1759123838209,-151.0,0.00027387,7]
[388362920,1759123838218,-151.0,0.00027387,7]
[388362921,1759123838228,-151.0,0.00027387,7]
[388362922,1759123838238,-151.0,0.00027387,7]
[388362923,1759123838248,-151.00653973,0.00027387,2]
[388362924,1759123838258,-151.0,0.00027387,7]
[388362925,1759123838268,-198.0,0.00027387,7]
[388362926,1759123838278,-761.7905987,0.00027389,2]
[388362927,1759123838288,-202.76462638,0.00027396,2]
[388362928,1759123838297,-176.56894284,0.00027396,2]
[388362929,1759123838307,-495.43616252,0.00027397,7]
[388362930,1759123838316,-480.0,0.00027397,7]
[388362931,1759123838325,-480.0,0.00027397,7]
[388362932,1759123838335,-492.41258199,0.00027397,7]
[388362933,1759123838345,-480.0,0.00027397,7]
[388362934,1759123838354,-480.0,0.00027397,7]
[388362935,1759123838363,-480.0,0.00027397,7]
[388362936,1759123838374,-480.0,0.00027397,7]
[388362937,1759123838384,-480.0,0.00027397,7]
[388362938,1759123838394,-602.09,0.00027397,7]
[388362939,1759123838404,-480.0,0.00027397,7]
[388362940,1759123838413,-480.0,0.00027397,7]
[388362941,1759123838423,-480.0,0.00027397,7]
[388362942,1759123838433,-480.0,0.00027397,7]
[388362943,1759123838443,-480.0,0.00027397,7]
[388362944,1759123838453,-500.0,0.00027397,7]
[388362945,1759123838462,-500.0,0.00027397,7]
[388362946,1759123838472,-500.0,0.00027397,7]
[388362947,1759123838481,-480.0,0.00027397,7]
[388362948,1759123838491,-482.11057989,0.00027397,7]
[388362949,1759123838500,-480.0,0.00027397,7]
[388362950,1759123838510,-480.0,0.00027397,7]
[388362951,1759123838519,-482.51236051,0.00027397,7]
[388362952,1759123838530,-233.87608454,0.00027397,3]
[388362953,1759123838540,-529.53,0.00027397,7]
[388362954,1759123838550,-480.0,0.00027397,7]
[388362955,1759123838560,-480.0,0.00027397,7]
[388362956,1759123838570,-480.0,0.00027397,7]
[388362957,1759123838580,-480.0,0.00027397,7]
[388362958,1759123838591,-218.61128393,0.00027397,7]
[388362959,1759123838600,-511.21,0.00027397,7]
[388362960,1759123838611,-480.0,0.00027397,7]
[388362961,1759123838620,-480.0,0.00027397,7]
[388362962,1759123838629,-855.31,0.00027397,7]
[388362963,1759123838639,-480.0,0.00027397,7]
[388362964,1759123838648,-480.0,0.00027397,7]
[388362965,1759123838657,-480.0,0.00027397,7]
[388362966,1759123838667,-480.0,0.00027397,7]
[388362967,1759123838676,-481.46208121,0.00027397,7]
[388362968,1759123838685,-480.0,0.00027397,7]
[388362969,1759123838695,-480.0,0.00027397,7]
[388362970,1759123838705,-151.0,0.00027397,7]
[388362971,1759123838714,-480.0,0.00027397,7]
[388362972,1759123838724,-480.0,0.00027397,7]
[388362973,1759123838734,-480.0,0.00027397,7]
[388362974,1759123838743,-251.822445,0.00027397,7]
[388362975,1759123838753,-480.0,0.00027397,7]
[388362976,1759123838762,-482.03596892,0.00027397,7]
[388362977,1759123838773,-785.31,0.00027397,7]
[388362978,1759123838782,-480.0,0.00027397,7]
[388362979,1759123838793,-480.0,0.00027397,7]
[388362980,1759123838803,-480.0,0.00027397,7]
[388362981,1759123838812,-480.0,0.00027397,7]
[388362982,1759123838822,-498.33,0.00027397,7]
[388362983,1759123838832,-612.93557742,0.00027397,7]
[388362984,1759123838841,-480.0,0.00027397,7]
[388362985,1759123838851,-480.0,0.00027397,7]
[388362986,1759123838860,-1490.29,0.00027397,7]
[388362987,1759123838871,-263.37369227,0.00027397,7]
[388362988,1759123838880,-740.35,0.00027397,7]
[388362989,1759123838889,-522.85,0.00027397,7]
[388362990,1759123838900,-151.0,0.00027397,7]
[388362991,1759123838909,-160.020067,0.00027397,7]
[388362992,1759123838919,-610.76419353,0.00027397,7]
[388362993,1759123838929,-480.0,0.00027397,7]
[388362994,1759123838939,-480.0,0.00027397,7]
[388362995,1759123838948,-480.0,0.00027397,7]
[388362996,1759123838958,-481.41191092,0.00027397,7]
[388362997,1759123838968,-480.0,0.00027397,7]
[388362998,1759123838977,-480.0,0.00027397,7]
[388362999,1759123838987,-639.78,0.00027397,7]
[388363000,1759123838997,-480.0,0.00027397,7]
[388363001,1759123839007,-1369.88,0.00027397,7]
[388363002,1759123839022,-480.0,0.00027397,7]
[388363003,1759123839032,-705.53,0.00027397,7]
[388363004,1759123839042,-657.71,0.00027397,7]
[388363005,1759123839052,-480.0,0.00027397,7]
[388363006,1759123839061,-486.78100342,0.00027397,7]
[388363007,1759123839071,-483.67853633,0.00027397,7]
[388363008,1759123839081,-480.0,0.00027397,7]
[388363009,1759123839091,-480.0,0.00027397,7]
[388363010,1759123839101,-480.0,0.00027397,7]
[388363011,1759123839111,-480.0,0.00027397,7]
[388363012,1759123839121,-845.21,0.00027397,7]
[388363013,1759123839131,-480.0,0.00027397,7]
[388363014,1759123839140,-1027.07,0.00027397,7]
[388363015,1759123839150,-536.76,0.00027397,7]
[388363016,1759123839159,-747.98,0.00027397,7]
[388363017,1759123839168,-480.0,0.00027397,7]
[388363018,1759123839179,-601.64,0.00027397,7]
[388363019,1759123839188,-480.0,0.00027397,7]
[388363020,1759123839198,-480.0,0.00027397,7]
[388363021,1759123839207,-153.369212,0.00027397,7]
[388363022,1759123839217,-480.0,0.00027397,7]
[388363023,1759123839226,-605.31,0.00027397,7]
[388363024,1759123839235,-480.0,0.00027397,7]
[388363025,1759123839245,-745.48,0.00027397,7]
[388363026,1759123839255,-480.0,0.00027397,7]
[388363027,1759123839263,-480.0,0.00027397,7]
[388363028,1759123839273,-480.0,0.00027397,7]
[388363029,1759123839282,-1014.39,0.00027397,7]
[388363030,1759123839291,-786.26,0.00027397,7]
[388363032,1759123839301,-480.0,0.00027397,7]
[388363033,1759123839311,-480.0,0.00027397,7]
[388363034,1759123839321,-151.0,0.00027397,7]
[388363035,1759123839331,-151.0,0.00027397,7]
[388363036,1759123839341,-951.72,0.00027397,7]
[388363038,1759123839349,-480.0,0.00027397,7]
[388363039,1759123839359,-480.0,0.00027397,7]
[388363040,1759123839368,-480.0,0.00027397,7]
[388363042,1759123839377,-480.0,0.00027397,7]
[388363043,1759123839387,-480.0,0.00027397,7]
[388363044,1759123839396,-151.0,0.00027397,7]
[388363045,1759123839405,-151.0,0.00027397,7]
[388363046,1759123839415,-151.0,0.00027397,7]
[388363047,1759123839424,-151.0,0.00027397,7]
[388363048,1759123839434,-756.74,0.00027397,7]
[388363049,1759123839443,-151.0,0.00027397,7]
[388363050,1759123839452,-480.0,0.00027397,7]
[388363051,1759123839461,-151.0,0.00027397,7]
[388363052,1759123839470,-1021.99,0.00027397,7]
[388363053,1759123839480,-480.0,0.00027397,7]
[388363054,1759123839490,-480.0,0.00027397,7]
[388363055,1759123839500,-151.0,0.00027397,7]
[388363056,1759123839509,-151.0,0.00027397,7]
[388363057,1759123839519,-151.0,0.00027397,7]
[388363058,1759123839528,-257.011063,0.00027397,7]
[388363059,1759123839538,-480.0,0.00027397,7]
[388363060,1759123839549,-480.0,0.00027397,7]
[388363061,1759123839559,-480.0,0.00027397,7]
[388363062,1759123839567,-480.0,0.00027397,7]
[388363063,1759123839577,-480.0,0.00027397,7]
[388363064,1759123839587,-480.0,0.00027397,7]
[388363065,1759123839597,-480.0,0.00027397,7]
[388363066,1759123839606,-480.0,0.00027397,7]
[388363067,1759123839616,-1579.01,0.00027397,7]
[388363068,1759123839625,-480.0,0.00027397,7]
[388363069,1759123839635,-492.98,0.00027397,7]
[388363070,1759123839644,-480.0,0.00027397,7]
[388363071,1759123839653,-480.0,0.00027397,7]
[388363072,1759123839663,-480.0,0.00027397,7]
[388363073,1759123839672,-480.0,0.00027397,7]
[388363074,1759123839681,-480.0,0.00027397,7]
[388363075,1759123839690,-480.0,0.00027397,7]
[388363076,1759123839699,-2146.46,0.00027397,7]
[388363077,1759123839708,-588.58,0.00027397,7]
[388363078,1759123839723,-480.0,0.00027397,7]
[388363079,1759123839732,-828.82,0.00027397,7]
[388363080,1759123839742,-890.29,0.00027397,7]
[388363081,1759123839751,-975.29,0.00027397,7]
[388363082,1759123839760,-480.0,0.00027397,7]
[388363083,1759123839770,-480.0,0.00027397,7]
[388363084,1759123839780,-1101.88,0.00027397,7]
[388363085,1759123839790,-480.0,0.00027397,7]
[388363086,1759123839799,-480.0,0.00027397,7]
[388363087,1759123839809,-480.0,0.00027397,7]
[388363088,1759123839818,-818.66,0.00027397,7]
[388363089,1759123839827,-516.92005338,0.00027397,7]
[388363090,1759123839836,-480.0,0.00027397,7]
[388363091,1759123839845,-480.0,0.00027397,7]
[388363092,1759123839854,-480.0,0.00027397,7]
[388363093,1759123839863,-480.0,0.00027397,7]
[388363094,1759123839872,-151.0,0.00027397,7]
[388363095,1759123839882,-151.0,0.00027397,7]
[388363096,1759123839891,-151.0,0.00027397,7]
[388363097,1759123839901,-151.0,0.00027397,7]
[388363098,1759123839910,-281.341482,0.00027397,7]
[388363099,1759123839919,-480.0,0.00027397,7]
[388363100,1759123839928,-480.0,0.00027397,7]
[388363101,1759123839937,-480.0,0.00027397,7]
[388363102,1759123839946,-858.52,0.00027397,7]
[388363103,1759123839955,-546.61,0.00027397,7]
[388363104,1759123839964,-480.0,0.00027397,7]
[388363105,1759123839974,-1292.04,0.00027397,7]
[388363106,1759123839983,-480.0,0.00027397,7]
[388363107,1759123839992,-480.0,0.00027397,7]
[388363108,1759123840002,-480.74465385,0.00027397,7]
[388363109,1759123840012,-480.0,0.00027397,7]
[388363110,1759123840024,-965.27,0.00027397,7]
[388363111,1759123840033,-480.0,0.00027397,7]
[388363112,1759123840043,-1024.98,0.00027397,7]
[388363113,1759123840052,-151.0,0.00027397,7]
[388363114,1759123840062,-2040.09,0.00027397,7]
[388363115,1759123840071,-480.0,0.00027397,7]
[388363116,1759123840080,-165.536154,0.00027397,7]
[388363117,1759123840091,-151.0,0.00027397,7]
[388363118,1759123840101,-151.0,0.00027397,7]
[388363119,1759123840111,-151.0,0.00027397,7]
[388363120,1759123840121,-151.0,0.00027397,7]
[388363121,1759123840130,-151.0,0.00027397,7]
[388363122,1759123840139,-480.0,0.00027397,7]